Cogmind - Beta 17.1 @@@ ROGUE MODE // 2026.09.04 @ 16:44:20 Player: Finn Result: Destroyed by 0D-WIU(R) with Subdweller Machine Gun Performance ------------- Evolutions (0) 0 Regions Visited (2) 400 Robots Destroyed (16) 80 Value Destroyed (348) 348 Prototype IDs (2) 40 Alien Tech Used (0) 0 Bonus (-9) -9 TOTAL SCORE: 859 Bonus ------- Friendly Fire -9 Cogmind --------- Core Integrity 0/250 Matter 200/300 Energy 41/100 System Corruption 1% Temperature Cool (0) Movement Core (150) Ox2 Location -10/Subcaves Parts ------- > --- POWER (1) -------- (None) > --- PROPULSION (2) --- (None) > --- UTILITY (2) ------ Small Storage Unit Improved Terrain Scanner > --- WEAPON (2) ------- EM Pulse Gun > --- INVENTORY (8) ---- Ion Engine Light Ion Engine Wheel Wheel Wheel Improved Medium Laser Peak State ------------ > --- POWER ------------ Cooled Ion Engine > --- PROPULSION ------- Wheel Wheel > --- UTILITY ---------- Small Storage Unit Improved Terrain Scanner > --- WEAPON ----------- Improved Medium Laser Light Assault Rifle > --- INVENTORY -------- Ion Engine Light Ion Engine Aluminum Leg Wheel Wheel Wheel EM Pulse Gun Assault Rifle [Rating: 13] Favorites ----------- Power Cooled Ion Engine Engine Cooled Ion Engine Propulsion Wheel Wheel Wheel Utility Small Storage Unit Device Improved Terrain Scanner Storage Small Storage Unit Weapon Assault Rifle Energy Gun Improved Medium Laser Energy Cannon Beam Cannon Ballistic Gun Assault Rifle Build | -11 -10 -10 ------- Run | Yrd Mat Sub Slots Evolved . | . . . Power . | . . . Propulsion . | . . . Utility . | . . . Weapon . | . . . Parts Attached 12 | 7 4 1 Power 2 | 1 1 . Engine 2 | 1 1 . Core . | . . . Reactor . | . . . Propulsion 2 | 2 . . Treads . | . . . Leg . | . . . Wheel 2 | 2 . . Hover . | . . . Flight . | . . . Utility 2 | 2 . . Device 1 | 1 . . Storage 1 | 1 . . Processor . | . . . Hackware . | . . . Protection . | . . . Artifact . | . . . Weapon 6 | 2 3 1 Energy Gun 3 | . 2 1 Energy Cannon 1 | . 1 . Ballistic Gun 2 | 2 . . Ballistic Cannon . | . . . Launcher . | . . . Special Weapon . | . . . Impact Weapon . | . . . Slashing Weapon . | . . . Piercing Weapon . | . . . Special Melee Weapon . | . . . Unidentified Prototypes 2 | . 2 . Parts Lost 6 | . . 6 Power 1 | . . 1 Propulsion 2 | . . 2 Utility . | . . . Weapon 3 | . . 3 Highest Loss Streak 6 | . . 6 To Critical Strikes 1 | . . 1 Average Backups 7 | 4 7 7 Power 1 | . 1 2 Propulsion 3 | 2 3 3 Utility . | . . . Weapon 2 | . 2 2 Tool/Special . | . . . Unused Backups 6 | . 2 4 Power 1 | . . 1 Propulsion 5 | . 2 3 Utility . | . . . Weapon . | . . . Tool/Special . | . . . Average Slot Usage (%) 98 | . 100 95 Engine 14 | . 14 14 Wheel 27 | . 28 25 Device 14 | . 14 14 Storage 14 | . 14 14 Energy Gun 4 | . 6 . Energy Cannon 5 | . 5 6 Ballistic Gun 17 | . 15 20 Peak Build Rating 13 | 9 13 12 Average Rating 11 | 4 12 11 On Entrance 7 | . 9 12 Avg Prop Armor Cover (%) . | . . . Naked Turns . | . . . Heaviest Build 19 | 12 19 19 Greatest Support 20 | 20 20 20 Greatest Overweight (x) 1 | 1 . 1 Average Overweight (x) . | . . . Largest Inventory Capacity 8 | 8 8 8 Average Capacity 7 | 7 8 8 Most Carried 8 | 8 8 8 Average Carried 7 | 4 7 7 Final Capacity 8 | 8 8 8 Final Carried 8 | 7 8 6 Class Distribution -------------------- 100% | Mutant Dominant Class ---------------- Mutant | -10/Materials Mutant | -10/Subcaves Resources | -11 -10 -10 ----------- Run | Yrd Mat Sub Matter Collected 466 | 324 36 106 Remotely . | . . . Salvage Created 490 | 163 201 126 Parts 16 | 8 4 4 Haulers Intercepted . | . . . Recyclers Shooed . | . . . Parts Field Recycled . | . . . Retrieved Matter . | . . . Parts Self-Destructed 9 | . . 9 Prevented . | . . . Parts Restored . | . . . Kills | -11 -10 -10 ------- Run | Yrd Mat Sub Combat Hostiles Destroyed 8 | . 4 4 Guns 2 | . 2 . Cannons 6 | . 2 4 Classes Destroyed 7 | 3 2 2 Worker 3 | 2 1 . Tunneler 3 | 3 . . Recycler 1 | 1 . . Watcher 1 | . 1 . Swarmer 2 | . . 2 Grunt 4 | . 4 . Subdweller 2 | . . 2 Best Kill Streak 3 | 3 2 2 Combat Bots Only 2 | . 2 2 Max Kills in Single Turn 1 | 1 1 1 Gunslinging . | . . . Exploded . | . . . Melee . | . . . Uniques/NPCs Destroyed . | . . . Combat | -11 -10 -10 -------- Run | Yrd Mat Sub Hostile Shots Fired 76 | . 24 52 Missed 25 | . 5 20 Hits 51 | . 19 32 Projectile 51 | . 19 32 Critical Strikes 2 | . . 2 Damage Taken 996 | . 315 681 Core 263 | . 108 155 Absorbed by Shields . | . . . Core Remaining (%) 100 | 100 . . Volleys Fired 79 | 15 30 34 Largest 2 | 2 2 2 Hottest 80 | 40 80 80 Shots Fired 150 | 30 59 61 Gun 124 | 30 48 46 Cannon 26 | . 11 15 Launcher . | . . . Special . | . . . Kinetic 110 | 30 37 43 Thermal 37 | . 22 15 Explosive . | . . . Electromagnetic 3 | . . 3 Robot Hit Streak 12 | 4 11 12 Robot Miss Streak 4 | 2 2 4 Penetration Max . | . . . Secondary Targets . | . . . Shots Hit Robots 78 | 18 40 20 Core Hits 30 | 10 12 8 Critical Kills . | . . . Critical Parts Destroyed . | . . . Critical Strikes . | . . . Melee Attacks . | . . . Impact . | . . . Slashing . | . . . Piercing . | . . . Sneak Attacks . | . . . Combat Hostiles . | . . . Follow-up Attacks . | . . . Damage Inflicted 1213 | 192 709 312 Guns 778 | 192 431 155 Cannons 260 | . 103 157 Explosions 175 | . 175 . Melee . | . . . Ramming . | . . . Kinetic 559 | 192 243 124 Thermal 448 | . 291 157 Explosive 175 | . 175 . Electromagnetic 31 | . . 31 Impact . | . . . Slashing . | . . . Piercing . | . . . Highest Corruption 1 | . 1 1 Average Corruption 1 | . 1 1 Corruption Purged . | . . . Corruption Blocked . | . . . Effects 4 | . 1 3 Matter Fused 1 | . . 1 Heat Flow Errors 1 | . . 1 Misfires 1 | . . 1 Weapon Failures 1 | . 1 . Overload Shots . | . . . Overflow Damage . | . . . Projectiles . | . . . Explosions . | . . . Melee . | . . . Knockbacks . | . . . Impact . | . . . Kinetic . | . . . Secondary . | . . . Self-Inflicted Damage 53 | . 53 . Shots 1 | . 1 . Rammed . | . . . Targets Rammed . | . . . Kicked . | . . . Crushed . | . . . Highest Temperature 289 | . 289 130 Average Temperature 86 | . 86 67 Received Heat Transfer 192 | . 144 48 Siege Activations . | . . . Martial Activations . | . . . Shielding Activations . | . . . Robots Disrupted . | . . . Combat Hostiles . | . . . Robots Corrupted . | . . . Combat Hostiles . | . . . Parts Fried . | . . . Impact Corruptions . | . . . Robots Melted . | . . . Combat Hostiles . | . . . Parts Melted . | . . . Heat Transferred 962 | . 629 333 Parts Sabotaged . | . . . Parts Stolen . | . . . Parts Stripped . | . . . Power Chain Reactions . | . . . Alert | -11 -10 -10 ------- Run | Yrd Mat Sub Maximum Alert Level . | . . . Low Security (%) 100 | 100 100 . Level 1 . | . . . Level 2 . | . . . Level 3 . | . . . Level 4 . | . . . Level 5 . | . . . High Security . | . . . Max Security . | . . . Peak Influence 123 | 5 123 . Initial 3 | . 3 . Average 37 | 1 46 . Influence Increases 322 | 30 222 70 Destroy 0b10 Robot/C 120 | . 80 40 Destroy 0b10 Robot/NC 40 | 30 10 . Destroy Leader 22 | . 22 . Disable Machine 60 | . 60 . Destroy Structure 20 | . 20 . Lose Combat Pursuer 60 | . 30 30 Influence Decreases 322 | 25 129 168 Entered New Map 50 | . 2 48 Time Decay 262 | 25 127 110 Lost Part 10 | . . 10 Squads Dispatched 1 | . 1 . Investigation . | . . . Extermination . | . . . Reinforcement 1 | . 1 . Assault . | . . . Garrison . | . . . Intercept . | . . . Searches Triggered . | . . . Construction Impeded . | . . . Haulers Reinforced . | . . . Active Scanning Responses . | . . . Cargo Convoy Interrupts . | . . . Stealth | -11 -10 -10 --------- Run | Yrd Mat Sub Distress Signals . | . . . Communications Jammed . | . . . Distress Signals . | . . . Times Spotted 25 | . 11 14 Peak Tracking Total 8 | . 4 8 Tactical Retreats 3 | . 2 1 Traps | -11 -10 -10 ------- Run | Yrd Mat Sub Traps Triggered . | . . . Indirectly . | . . . Trap Hack Attempts . | . . . Triggered . | . . . Disarmed . | . . . Reprogrammed 5 | . 5 . Reused . | . . . Traps Extracted . | . . . Installed . | . . . Triggered . | . . . Machines | -11 -10 -10 ---------- Run | Yrd Mat Sub Machines Disabled 4 | . 4 . Max in Single Turn 1 | . 1 . Machines Repaired . | . . . Machines Dismantled . | . . . Machines Sabotaged . | . . . Overloaded Fab Kills . | . . . Hacking | -11 -10 -10 --------- Run | Yrd Mat Sub Machines Accessed 4 | . 4 . Terminals 3 | . 3 . Fabricators . | . . . Repair Stations . | . . . Recycling Units 1 | . 1 . Scanalyzers . | . . . Garrison Access . | . . . Total Hacks 6 | . 6 . Successful 2 | . 2 . Failed 4 | . 4 . Catastrophic . | . . . Database Lockouts . | . . . Manual . | . . . Terminals 5 | . 5 . Fabricators . | . . . Repair Stations . | . . . Recycling Units 1 | . 1 . Scanalyzers . | . . . Garrison Access . | . . . Terminal Hacks 1 | . 1 . Reprogram Traps 1 | . 1 . Fabricator Hacks . | . . . Repair Station Hacks . | . . . Recycling Unit Hacks 1 | . 1 . Retrieve Components 1 | . 1 . Scanalyzer . | . . . Garrison Access Hacks . | . . . Unauthorized Hacks . | . . . Terminals . | . . . Fabricators . | . . . Repair Stations . | . . . Recycling Units . | . . . Scanalyzers . | . . . Garrison Access . | . . . Data Cores Recovered . | . . . Used . | . . . Hacking Detections 3 | . 3 . Full Trace Events 1 | . 1 . Feedback Events 1 | . 1 . Corruption 1 | . 1 . Feedback Blocked . | . . . Robot Schematics Acquired . | . . . Robots Built . | . . . Authchips . | . . . Time . | . . . Total Robot Build Rating . | . . . Part Schematics Acquired . | . . . Parts Built . | . . . Authchips . | . . . Time . | . . . Total Part Build Rating . | . . . Part Studies Acquired . | . . . Parts Repaired . | . . . Time . | . . . Parts Recycled . | . . . Recycled Matter . | . . . Retrieved Matter . | . . . Retrieved Components 3 | . 3 . Parts Scanalyzed . | . . . Part Schematics Acquired . | . . . Parts Damaged . | . . . Bothacking | -11 -10 -10 ------------ Run | Yrd Mat Sub Used RIF Installer . | . . . Robots Hacked . | . . . Non-combat . | . . . Combat . | . . . Robot Hacks Applied . | . . . Relay Couplers Released . | . . . Fabnet Peak Effective % . | . . . Robots Rewired . | . . . Allies Hacked . | . . . Hacks Repelled . | . . . Allies | -11 -10 -10 -------- Run | Yrd Mat Sub Total Allies . | . . . Largest Group . | . . . Highest-Rated Group . | . . . Highest-Rated Ally . | . . . Total Orders . | . . . Ally Attacks . | . . . Total Damage . | . . . Kills . | . . . Allies Corrupted . | . . . Allies Melted . | . . . Intel | -11 -10 -10 ------- Run | Yrd Mat Sub Active Infowar (turns) 821 | 3 545 273 Terrain 821 | 3 545 273 Robot Analysis Total . | . . . Derelict Logs Recovered . | . . . Drone Launches . | . . . Drone Recoveries . | . . . Exploration | -11 -10 -10 ------------- Run | Yrd Mat Sub Turns Passed 957 | 139 545 273 Spaces Moved 633 | 76 357 200 Core 6 | 6 . . Treads . | . . . Legs . | . . . Wheels 627 | 70 357 200 Hover . | . . . Flight . | . . . Fastest Speed 50 | 50 80 80 Average Speed 80 | 85 80 80 Slowest Speed 95 | 95 80 95 Overloaded Moves . | . . . Propulsion Burnouts . | . . . Robots Hopped . | . . . Potential Cave-ins . | . . . Cave-ins Triggered . | . . . Exploration Rate (%) 25 | 5 57 15 Regions Visited 2 Branch Regions 1 Pre-discovered Areas . | . . . Known Exits Taken . | . . . Unknown Exits Taken 2 | 1 1 . Scrap Searched . | . . . Spaces Dug . | . . . Terrain Destroyed 18 | . 18 . Melee . | . . . Projectile . | . . . AOE 18 | . 18 . Terrain Rammed . | . . . Walls Destroyed . | . . . Machines Disabled . | . . . Actions | -11 -10 -10 --------- Run | Yrd Mat Sub Total 937 | 123 558 256 Wait 192 | 12 161 19 Move 631 | 75 356 200 Hop . | . . . Pick Up 17 | 14 3 . Fast Attach 1 | . 1 . Attach 9 | 7 . 2 Detach . | . . . Swap 5 | . 4 1 Drop 3 | . 3 . Fire 79 | 15 30 34 Melee . | . . . Ram . | . . . Kick . | . . . Crush . | . . . Escape Stasis . | . . . Rewire . | . . . Trap . | . . . Miscellaneous . | . . . Route ------- -11/Scrapyard -10/Materials (discovered 3 exits: [*Mat] / [*Min] / [*Sub]) -10/Subcaves (discovered 1 exit: [*Rec]) History --------- Turn | Location | Event 7 | -11/Scrapyard | Discovered new exit (range 16) 140 | -11/Scrapyard | Entered Materials 308 | -10/Materials | Build established: Mutant 535 | -10/Materials | Discovered new exit (range 14) 626 | -10/Materials | Discovered new exit (range 11) 679 | -10/Materials | Discovered new exit (range 8) 685 | -10/Materials | Entered Subcaves 685 | -10/Subcaves | Discovered new exit (range 11) 913 | -10/Subcaves | Ambushed by swarm of Subdwellers 918 | -10/Subcaves | Ambushed by Subdwellers from Twisted Machinery 918 | -10/Subcaves | Ambushed by Subdwellers from Twisted Machinery 923 | -10/Subcaves | Core integrity fell below 50% 953 | -10/Subcaves | Core integrity fell below 20% 958 | -10/Subcaves | Destroyed by 0D-WIU(R) with Subdweller Machine Gun Last Messages --------------- 00919_ HV Slug penetrates Wall. 00920_ System corrupted: Matter fused (-10). 00921_ L6-BEJ(R) emerges from the Twisted Machinery. 00922_ 62-N8I(R) suffers critical hit (Destroy). 00925_ HV Slug penetrates 0R-K0H(R). 00925_ 0R-K0H(R) suffers critical hit (Destroy). 00925_ HV Slug penetrates Wall. 00926_ YX-YAM(R) emerges from the Twisted Machinery. 00926_ V4-DFG(g) destroyed. 00926_ HO-JUN(R) destroyed. 00939_ 4A-3I4(R) destroyed. 00948_ Wheel destroyed. 00949_ Assault Rifle destroyed. 00949_ FR-4RA(R) destroyed. 00950_ Acquired 49 matter. 00951_ Cld. Ion Engine destroyed. 00952_ Subatomizers dissect the Beamcaster. 00953_ Beam Cannon destroyed. Map ----- +----------------------------------------------------+ | ??????????? #??????????????????????????????????? | | ?????????? #??????????????????????????????????? | | #####????# ###????????????????????????????????? | | #???? ##???????????????????????????????? | | ##?? ??????????????????????????????? | | # ##? ????????????????????????????????? | | # ## #???????????????????????????????????? | | # % #???????????????????????????????????? | | % ## ?????????????????????????????? | | % ?????????????????????????????? | | #?#???????????????????????????? | | ## ### #???#??#??????????????????????? | | ### #???? ??????????????????????????????? | | ??# #?? ? ?#%???#????????##?????????????????? | | ### ### ??#????????????????????????????????? | | ## #?# ????????????#??????????????????????? | | # #### #???????????#??????????????????????? | | ### ##??????????#?#????????????????????? | | ### #?????????#???????????????????????? | | ### ???? ???###???????????????????????? | | ### ###?????## ##??#?#????????#????????? | | ### #??###### #??????????????????????? | | ##?# #?## ## ##?????????#???????????? | | ##???# ### % ##?????????????????????? | | ###??# ## R R! ###?????#?????????????? | | ##??# %=![ %R &%@ #??#?????????????????? | | ##?# &[ * =%& R #;###?????#??????????????? | | ### = ! [=]!* ####??#???????????????????? | | ! %%!"" #??#??????????????????????? | | ##"""##?????????????????????????? | | ## #######?????????????????#????????? | | ###### ##???????????????#?????#??????????? | | ??#??## ##?????????????????????????????????? | | ??????# #???????? ????#?????#??????????????? | | ??????# #????##???????????????????????????? | | ??????# ##????? ??????????????????????????? | | ??????## #????????? ???????????????????????? | | ???????### ?????? ?????????#???????????????? | | ?????????# ????????#??????????????????????? | | ?????????# ??????????????????????????????? | | ?????????## ?????????????????????????????? | | ??????????###### ###?????????????????????????????? | | ??????????#?????##???????????????????????????????? | | ?????????????????????????????????????????????????? | | ?????????????????????????????????????????????????? | | ?????????????????????????????????????????????????? | | ?????????????????????????????????????????????????? | | ?????????????????????????????????????????????????? | | ?????????????????????????????????????????????????? | | ?????????????????????????????????????????????????? | +----------------------------------------------------+ Best States ------------- Heat Dissipation 25 Energy Generation 14 Energy Capacity 280 Matter Stores 293 Matter Capacity 300 Sight Range 16 Terrain Scan Range 16 Terrain Scan Density 10 Evasion (%) 50 Item Schematics ----------------- None Robot Schematics ------------------ None Fabricated ------------ Nothing Repaired ---------- Nothing Studied --------- None Alien Tech Used ----------------- None Achievements -------------- None Challenges ------------ None Game ------ Seed NuclearPartitionDoublenader Manual? 0 Play Time 00:10:06 Cumulative 30.5 hours Start 2026.09.04 @ 16:36:45 End 2026.09.04 @ 16:44:20 Sessions 1 Manual Loads 0 Difficulty Rogue Special Mode None Game No. 74 Rogue 57 Adventurer 15 Explorer 2 Win Type - Total 0 Types 0/0/0/0/0/0/0/0/0/0 Lore% 25 Gallery% 24 Achievement% 21 Wizard Run 0 Options --------- Layout 1 ASCII 0 Keyboard 0 Movement Mouse Keybinds 0 Fullscreen 1 Font 24/Smallcaps Map View 50x35 Zoom Use 0% Tactical HUD 1 Map Filters NONE Filters NONE Steam 1 RUN: af4c8c62-0b64-41ab-9b7e-edcc9730f209